{"text_format":"1","workbook":"xlsx","n_sheets":3,"sheets":["Intro","EP-Check Grafik","Anleitung & Input"],"not_rendered":{"charts":3,"images":2,"macros":1,"external_links":0,"defined_names":3,"comments":0,"pivot_tables":0},"unopened":[],"bounds":{"document_bytes":16777216,"sheet_cells":100000,"rows_first":2000,"rows_last":500,"rows_between":2000,"halvings":0,"cell_chars":16384,"cell_head_chars":4096},"cells_cut":0,"cells_raw":0,"read":"whole","date_system":"1900"}

{"sheet":"Intro","index":0,"n_rows":0,"n_cols":0,"rows_kept":0,"cut":false,"hidden":false,"merged":[]}

{"sheet":"EP-Check Grafik","index":1,"n_rows":12,"n_cols":11,"rows_kept":12,"cut":false,"hidden":false,"merged":[]}
[]
[null,null,null,null,null,null,null,null,null,null,{"$f":"TODAY()","v":"2022-11-15"}]
[]
[]
[null,"#EqualPension – Ihr persönlicher EqualPension-Check"]
[]
[null,{"$f":"'Anleitung & Input'!G3 & \", \" & 'Anleitung & Input'!G4","v":"Allianz, 1"}]
[null,{"$f":"'Anleitung & Input'!G5","v":1}]
[]
[null,null,{"$f":"'Anleitung & Input'!G9","v":600},null,null,null,{"$f":"'Anleitung & Input'!G13","v":34}]
[null,null,"Arbeitnehmer:innen ",null,null,null,"bAV-Versorgungen",null,null,null,"Durchschnittsbeitrag"]
[null,null,"im Unternehmen"]

{"sheet":"Anleitung & Input","index":2,"n_rows":35,"n_cols":7,"rows_kept":35,"cut":false,"hidden":false,"merged":[[23,5,58,6]]}
["Beitrag","Beitragszahlung","Geschlecht","Berechnete Monatswerte",null,"Unternehmensdaten EP-Check"]
[500,"jährlich","männlich",{"$f":"IF(B2=\"jährlich\",A2/12,IF(B2=\"halbjährlich\",A2/6,IF(B2=\"vierteljährlich\",A2/3,IF(B2=\"monatlich\",A2,0))))","v":41.666666666666664}]
[56,"monatlich","weiblich",56,null,"Kundenname","Allianz"]
[180,"jährlich","weiblich",15,null,"Kundenadresse",1]
[500,"jährlich","weiblich",41.666666666666664,null,"Gruppenvertragsnummer, Durchführungswege",1]
[25,"monatlich","männlich",25]
[500,"jährlich","männlich",41.666666666666664,null,"Frauen",200]
[500,"jährlich","männlich",41.666666666666664,null,"Männer",400]
[500,"jährlich","weiblich",41.666666666666664,null,"Anzahl Mitarbeiter gesamt",{"$f":"G7+G8","v":600}]
[500,"jährlich","weiblich",41.666666666666664]
[130,"monatlich","männlich",130,null,"Frauen ",{"$f":"COUNTIF(C2:C37,\"weiblich\")+COUNTIF(C2:C37,\"w\")","v":13}]
[20,"monatlich","männlich",20,null,"Männer",{"$f":"COUNTIF(C2:C37,\"männlich\")+COUNTIF(C2:C37,\"m\")","v":21}]
[212,"monatlich","männlich",212,null,"Anzahl Mitarbeiter mit bAV",{"$f":"G11+G12","v":34}]
[500,"jährlich","männlich",41.666666666666664]
[50,"monatlich","männlich",50,null,"Frauen",{"$f":"(SUMIF(C2:C37,\"weiblich\",D2:D37)+SUMIF(C2:C37,\"w\",D2:D37))/$G$11","v":55.064102564102569}]
[1000,"jährlich","männlich",83.333333333333329,null,"Männer",{"$f":"(SUMIF(C2:C37,\"männlich\",D2:D37)+SUMIF(C2:C37,\"m\",D2:D37))/$G$12","v":92.301587301587304}]
[1000,"jährlich","männlich",83.333333333333329]
[212,"monatlich","männlich",212]
[500,"jährlich","männlich",41.666666666666664]
[500,"jährlich","männlich",41.666666666666664]
[212,"monatlich","männlich",212]
[500,"jährlich","männlich",41.666666666666664]
[20,"monatlich","männlich",20]
[500,"jährlich","weiblich",41.666666666666664,null,"Anleitung:\n\n1. Erstellen Sie auf Ihrem Laufwerk einen neuen Ordner für Ihren Kunden z.B.: Musterfirma_EP-Check.\n\n2. Kopieren Sie dann dieses Tool/Excel-Datei in den Ordner und benennen es z. B. nach Datum_Musterfirma_EP-Check.\n\n3. Kopieren Sie nun die zu dem Kunden gehörige GVFirm- bzw. FONL-Excel-Datei mit in diesen Ordner.\n\n4. Öffnen Sie nun das Tool Datum_Musterfirma_EP-Check und befüllen Sie die hellblauen Felder Frauen, Männer sowie Kundenname, Kundenadresse und Gruppenvertragsnummer bzw. Durchführungswege.\n\n5. Betätigen Sie den dunkelblauen Button EP-Check durchführen. Die Kunden-Daten werden automatisch in dieses Tool geladen und die Grafiken im Reiter EP-Check Grafik entsprechend aktualisiert.\n\n6. Mit Betätigen des dunkelblauen Buttons EP-Check als PDF speichern wird aus dieser Excel der finale EP-Check als 2-seitiges PDF, das in Ihrem Ordner automatisch abgespeichert wird. \n"]
[112,"monatlich","weiblich",112]
[500,"jährlich","männlich",41.666666666666664]
[500,"jährlich","weiblich",41.666666666666664]
[1000,"jährlich","männlich",83.333333333333329]
[500,"jährlich","weiblich",41.666666666666664]
[362,"monatlich","männlich",362]
[500,"jährlich","weiblich",41.666666666666664]
[1344,"jährlich","weiblich",112]
[87.5,"monatlich","weiblich",87.5]
[500,"jährlich","weiblich",41.666666666666664]
[112,"monatlich","männlich",112]